bitfinex/quotes_ETHUSD_20250623
["timestamp","ask_amount","ask_price","bid_price","bid_amount"]
[1750654088016,0.41853834,2237.2,2237.1,0.0576]
[1750654088218,0.41853764,2237.2,2237.1,0.0576]
[1750654088790,0.41852028,2237.2,2237.1,0.0576]
[1750654090119,0.0446,2237.1,2236.6,3.11397888]
[1750654090320,2.29452028,2237.0,2236.6,3.17157888]
[1750654090484,0.41852028,2236.9,2236.6,3.17157888]
[1750654090683,0.41852028,2236.8,2236.6,3.17157888]
[1750654090883,0.41852028,2236.7,2236.6,10.0576]
[1750654091220,0.41839037,2236.7,2236.6,10.0576]
[1750654091776,0.4178518,2236.7,2236.6,10.0576]
[1750654092413,1.876,2237.0,2236.6,10.0576]
[1750654092613,0.41758341,2236.9,2236.6,10.0576]
[1750654092836,0.41758341,2236.8,2236.5,3.11397888]
[1750654092988,0.0446,2236.6,2235.8,0.0606]
[1750654093325,11.16158341,2236.7,2235.8,0.0606]
[1750654093326,0.0446,2236.4,2235.8,0.0606]
[1750654093523,0.41758341,2236.3,2235.7,7.89860613]
[1750654093695,0.41758341,2236.3,2235.7,8.75516024]
[1750654094009,0.41758341,2236.3,2235.8,0.0606]
[1750654094511,0.41758341,2236.3,2235.7,7.95920613]
[1750654094674,0.41758341,2236.3,2235.7,7.89860613]
[1750654094880,0.41758341,2236.3,2235.8,0.0606]
[1750654095087,0.0446,2236.4,2235.8,0.0606]
[1750654095908,0.41587176,2236.3,2235.8,0.0606]
[1750654096311,1.877,2236.2,2235.8,0.0606]
[1750654096529,0.0446,2236.4,2235.9,7.12270613]
[1750654096730,0.0446,2236.4,2236.0,0.0606]
[1750654097036,1.877,2236.3,2236.0,0.0606]
[1750654097201,1.877,2236.2,2235.9,7.1674284]
[1750654097529,1.877,2236.2,2236.0,0.0606]
[1750654099003,1.877,2236.2,2235.7,8.40016257]
[1750654099210,1.877,2236.1,2235.8,0.0606]
[1750654099415,1.877,2236.1,2235.8,3.17457888]
[1750654099817,1.877,2236.1,2235.8,3.11397888]
[1750654100022,1.877,2236.0,2235.9,0.0606]
[1750654103858,0.0446,2236.4,2235.9,0.0606]
[1750654104008,1.877,2236.1,2235.9,0.0606]
[1750654104357,1.877,2236.1,2235.8,3.15869988]
[1750654104507,1.877,2236.1,2235.9,0.0606]
[1750654105536,1.877,2236.1,2235.8,3.15869988]
[1750654106141,1.877,2236.1,2235.9,0.0606]
[1750654106720,1.877,2236.1,2235.8,3.15869988]
[1750654107051,1.877,2236.1,2235.9,0.0606]
[1750654109416,1.877,2236.1,2235.8,3.15869939]
[1750654110223,1.877,2236.1,2235.9,0.0606]
[1750654110745,1.877,2236.1,2235.8,3.15869939]
[1750654110946,1.877,2236.1,2235.9,0.0606]
[1750654112043,1.877,2236.1,2235.8,3.15869939]
[1750654112419,1.877,2236.1,2235.9,0.0606]
[1750654112942,1.877,2236.1,2235.8,3.15869939]
[1750654113345,1.877,2236.1,2235.9,0.0606]
[1750654114012,1.877,2236.1,2235.8,3.11397888]
[1750654114219,1.877,2236.1,2235.8,3.17457888]
[1750654114572,1.877,2236.1,2235.8,3.11397888]
[1750654114747,1.877,2236.1,2235.9,0.0606]
[1750654115743,1.877,2236.1,2235.7,11.45354145]
[1750654115947,1.877,2236.1,2235.8,0.0606]
[1750654116455,1.877,2236.1,2236.0,0.0606]
[1750654117635,2.29402248,2236.1,2236.0,0.0606]
[1750654118045,0.41702248,2236.1,2236.0,0.0606]
[1750654118218,2.29602248,2236.1,2236.0,0.0606]
[1750654118620,0.0446,2236.4,2236.0,3.17457888]
[1750654118959,1.879,2236.5,2236.3,0.0606]
[1750654119255,1.879,2236.5,2236.4,7.18330613]
[1750654119465,10.744,2236.7,2236.4,7.12270613]
[1750654119620,1.879,2236.6,2236.5,0.0606]
[1750654120052,1.879,2236.6,2236.2,10.29728501]
[1750654120256,1.879,2236.6,2236.2,3.17457888]
[1750654120553,0.0446,2236.5,2236.2,3.11397888]
[1750654123725,0.0446,2236.5,2236.1,10.0]
[1750654124054,0.0446,2236.5,2236.2,0.0565]
[1750654124744,0.0446,2236.5,2236.1,10.0]
[1750654125125,1.879,2236.6,2236.2,7.12270613]
[1750654125434,1.879,2236.6,2236.3,0.0565]
[1750654125634,1.879,2236.6,2236.2,7.12270613]
[1750654126250,1.879,2236.6,2236.3,0.0565]
[1750654127931,7.222,2236.6,2236.3,0.04471561]
[1750654128258,7.222,2236.6,2236.4,0.0565]
[1750654128835,7.222,2236.6,2236.5,0.0565]
[1750654129037,9.101,2236.6,2236.5,0.0565]
[1750654129954,10.744,2236.7,2236.5,1.0858185]
[1750654130155,17.966,2236.7,2236.6,7.96690613]
[1750654130355,17.966,2236.7,2236.6,7.17920613]
[1750654130658,7.222,2236.7,2236.6,7.17920613]
[1750654132568,1.879,2236.8,2236.6,7.12270613]
[1750654132735,9.101,2236.8,2236.7,0.81520246]
[1750654132933,0.0446,2237.2,2236.7,0.81520246]
[1750654133244,0.0446,2237.8,2237.0,0.0565]
[1750654133461,7.12270613,2238.1,2237.0,0.0565]
[1750654133462,0.0446,2237.5,2237.0,0.0565]
[1750654133847,7.222,2237.4,2237.0,0.0565]
[1750654134492,0.0446,2237.5,2237.0,0.0565]
[1750654134701,1.879,2237.4,2237.0,0.0565]
[1750654134853,9.101,2237.4,2237.0,0.0565]
[1750654135346,0.0446,2237.5,2237.1,0.0565]
[1750654135678,9.101,2237.4,2237.1,0.0565]
[1750654135880,1.879,2237.3,2237.2,0.0565]
[1750654136052,9.101,2237.3,2237.2,0.0565]
[1750654137345,1.879,2237.3,2237.2,0.0565]
[1750654137551,9.101,2237.3,2237.2,0.0565]
[1750654137951,9.51863438,2237.3,2237.2,0.0565]
[1750654138580,0.41763438,2237.3,2237.2,4.12738449]
[1750654138761,9.101,2237.4,2237.2,4.11557767]
[1750654139082,9.101,2237.4,2237.3,7.17920613]
[1750654139658,9.1,2237.5,2237.3,7.12270613]
[1750654139857,9.1,2237.5,2237.4,0.0565]
[1750654140189,9.51755532,2237.5,2237.4,0.0565]
[1750654140483,9.51755683,2237.5,2237.4,0.0565]
[1750654141156,9.51756943,2237.5,2237.4,0.0565]
[1750654141787,9.51762488,2237.5,2237.4,0.0565]
[1750654143073,9.51744241,2237.5,2237.4,0.0565]
[1750654143276,9.51744241,2237.5,2237.2,10.29318501]
[1750654143590,9.1,2237.5,2237.2,10.7920257]
[1750654143785,9.1,2237.5,2237.2,10.7355257]
[1750654143988,10.7926,2237.8,2237.3,0.0565]
[1750654144168,1.879,2237.5,2237.4,7.12270613]
[1750654144369,2.29641686,2237.5,2237.4,7.17920613]
[1750654144672,1.879,2237.5,2237.4,7.17920613]
[1750654144897,2.29649605,2237.5,2237.4,7.17920613]
[1750654145078,1.879,2237.5,2237.4,7.17920613]
[1750654145390,2.29650236,2237.5,2237.4,7.17920613]
[1750654146055,9.51651467,2237.5,2237.4,7.17920613]
[1750654146260,9.51651467,2237.5,2237.4,8.2584087]
[1750654146461,9.099,2237.5,2237.4,8.2584087]
[1750654147100,9.51635553,2237.5,2237.4,8.2584087]
[1750654147298,9.51635553,2237.5,2237.3,3.11397888]
[1750654147495,0.46192513,2237.4,2237.3,3.11397888]
[1750654147897,0.46192561,2237.4,2237.3,3.11397888]
[1750654148416,0.46201508,2237.4,2237.3,3.11397888]
[1750654148901,0.46221209,2237.4,2237.3,3.11397888]
[1750654149100,0.46219065,2237.4,2237.3,3.11397888]
[1750654149313,0.46215897,2237.4,2237.3,3.11397888]
[1750654149467,0.46216938,2237.4,2237.3,3.11397888]
[1750654150183,0.41756938,2237.4,2237.3,3.11397888]
[1750654150389,9.51356174,2237.4,2237.2,7.17920613]
[1750654150696,9.096,2237.4,2237.2,0.0565]
[1750654150903,0.41757355,2237.3,2237.2,0.0565]
[1750654151204,0.41758058,2237.3,2237.2,0.0565]
[1750654151717,0.41758058,2237.3,2237.0,11.50342642]
[1750654152012,0.41758583,2237.2,2237.0,10.74322642]
[1750654152171,9.096,2237.4,2237.0,3.62052029]
[1750654152478,0.41758257,2237.3,2237.0,3.56402029]
[1750654152671,0.41758257,2237.2,2237.0,3.56402029]
[1750654152872,9.096,2237.4,2237.0,3.62602029]
[1750654153071,0.41756607,2237.3,2237.0,3.62602029]
[1750654153284,0.41756607,2237.2,2237.0,3.62602029]
[1750654153485,9.096,2237.4,2237.0,3.62602029]
[1750654153886,0.4175484,2237.3,2237.0,3.62602029]
[1750654154104,0.4175588,2237.2,2237.0,3.62602029]
[1750654154304,9.096,2237.4,2237.0,3.62602029]
[1750654154621,0.41757707,2237.3,2237.0,3.62602029]
[1750654154768,0.41758596,2237.2,2237.0,3.62602029]
[1750654154977,0.0446,2237.3,2237.0,3.62602029]
[1750654155189,0.41758125,2237.2,2237.0,3.62602029]
[1750654155386,0.0446,2237.3,2237.0,3.62602029]
[1750654155609,0.41763088,2237.2,2237.0,3.62602029]
[1750654155792,0.0446,2237.3,2237.0,3.62602029]
[1750654155999,0.41761763,2237.2,2237.0,3.62602029]
[1750654156200,0.0446,2237.3,2237.0,0.51204141]
[1750654156398,0.41767786,2237.2,2237.0,0.51204141]
[1750654156578,0.0446,2237.3,2237.0,0.51204141]
[1750654156778,0.41769233,2237.2,2237.0,0.51204141]
[1750654156991,0.0446,2237.3,2237.0,0.51204141]
[1750654157192,0.41773215,2237.2,2237.0,0.51204141]
[1750654157412,0.41782464,2237.1,2237.0,0.51204141]
[1750654157783,0.4178358,2237.1,2237.0,0.51204141]
[1750654158104,0.41783488,2237.2,2237.0,0.51204141]
[1750654158307,0.41783488,2237.1,2237.0,0.51204141]
[1750654158506,0.0446,2237.5,2237.0,9.54925695]
[1750654158707,9.51398193,2237.4,2237.1,0.062]
[1750654158882,0.41798193,2237.3,2237.1,0.062]
[1750654159077,0.41800381,2237.2,2237.1,0.062]
[1750654159303,0.41800381,2237.2,2237.0,0.51204141]
[1750654159628,0.41812165,2237.1,2237.0,0.51204141]
[1750654160319,0.41819782,2237.1,2237.0,0.51204141]
[1750654160912,0.41828986,2237.1,2237.0,0.45004141]
[1750654161112,0.41828986,2237.1,2237.0,0.062]
[1750654161507,0.41844135,2237.1,2236.9,10.0]
[1750654161708,0.0446,2237.5,2236.9,10.0]
[1750654161883,9.51440622,2237.4,2237.1,10.0]
[1750654162085,0.41840622,2237.3,2237.2,0.062]
[1750654162486,0.41860895,2237.3,2237.2,0.062]
[1750654163318,0.41862417,2237.3,2237.2,0.062]
[1750654163813,9.096,2237.4,2237.1,10.0]
[1750654164212,0.41870376,2237.3,2237.1,10.0]
[1750654164405,0.41876468,2237.2,2237.1,10.0]
[1750654165492,0.46336468,2237.2,2237.1,10.0]
[1750654166629,0.0446,2237.2,2237.1,10.0]
[1750654166990,0.0446,2237.2,2237.0,3.11397888]
[1750654167735,0.0446,2237.2,2237.0,3.17597888]
[1750654168033,0.0446,2237.2,2237.0,0.062]
[1750654168190,0.0446,2237.2,2236.6,10.062]
[1750654168388,0.0446,2237.2,2236.6,10.0]
[1750654168600,0.0446,2237.2,2236.7,0.062]
[1750654168802,0.0446,2237.2,2236.6,10.062]
[1750654169328,0.0446,2237.2,2236.7,7.18470613]
[1750654169528,0.0446,2237.2,2236.7,7.12270613]
[1750654169829,0.0446,2237.2,2236.8,0.062]
[1750654169996,0.0446,2237.2,2236.7,7.12270613]
[1750654170202,0.0446,2237.2,2236.8,0.062]
[1750654170728,9.097,2237.1,2237.0,7.12270613]
[1750654170944,9.097,2237.1,2237.0,7.18470613]
[1750654171615,9.51598513,2237.1,2237.0,7.18470613]
[1750654172513,9.51566535,2237.1,2237.0,7.87970613]
[1750654172719,9.51566535,2237.1,2237.0,8.72967674]
[1750654173051,0.41872408,2237.1,2237.0,8.72967674]
[1750654173411,1.877,2237.2,2237.0,8.72967674]
[1750654173615,0.41876073,2237.1,2237.0,8.72967674]
[1750654173927,0.41878912,2237.1,2237.0,8.72967674]
[1750654174315,0.41877372,2237.1,2237.0,8.72967674]
[1750654174515,0.41877372,2237.1,2237.0,7.94170613]
[1750654174750,1.877,2237.2,2237.0,7.87970613]
[1750654174916,0.41876801,2237.1,2237.0,7.18470613]
[1750654175117,0.41877519,2237.1,2237.0,8.00270613]
[1750654175349,0.41879313,2237.1,2237.0,8.00270613]
[1750654176150,0.41878581,2237.1,2237.0,8.00270613]
[1750654176327,0.41878581,2237.1,2237.0,9.11437463]
[1750654176525,0.41900054,2237.1,2237.0,9.11437463]
[1750654176727,0.41900092,2237.1,2237.0,9.11437463]
[1750654177119,0.41899952,2237.1,2237.0,9.11437463]
[1750654177319,0.41899953,2237.1,2237.0,9.11437463]
[1750654177755,0.41900317,2237.1,2237.0,9.05237463]
[1750654177959,0.41900317,2237.1,2237.0,9.11437463]
[1750654178460,0.41901152,2237.1,2237.0,9.11437463]
[1750654178665,0.41901152,2237.1,2237.0,7.12270613]
[1750654178970,0.41901201,2237.1,2236.9,3.11397888]
[1750654179174,0.41901201,2237.0,2236.9,3.11397888]
[1750654179684,7.63806002,2237.0,2236.9,3.17597888]
[1750654179962,7.63806002,2237.0,2236.9,0.062]
[1750654180159,7.219,2237.0,2236.9,0.062]
[1750654180362,7.63803806,2237.0,2236.9,0.062]
[1750654180561,7.63803716,2237.0,2236.9,0.062]
[1750654180770,0.41903716,2237.0,2236.9,0.062]
[1750654181068,2.29603732,2237.0,2236.9,0.062]
[1750654181366,2.29604104,2237.0,2236.9,0.062]
[1750654182363,2.29604568,2237.0,2236.9,0.062]
[1750654182537,2.29604568,2237.0,2236.8,7.12270613]
[1750654182736,1.877,2237.0,2236.8,7.12270613]
[1750654182941,0.41902522,2236.9,2236.8,7.18230613]
[1750654183245,0.41902719,2236.9,2236.8,7.18230613]
[1750654183457,0.41902875,2236.9,2236.8,7.18230613]
[1750654183649,0.41903106,2236.9,2236.8,7.18230613]
[1750654184568,1.877,2237.0,2236.8,7.18230613]
[1750654184773,0.41901825,2236.9,2236.8,7.18230613]
[1750654185343,1.877,2237.0,2236.8,7.18230613]
[1750654185543,0.4190058,2236.9,2236.8,7.18230613]
[1750654186650,0.4190058,2236.9,2236.8,7.12270613]
[1750654186850,0.4190058,2236.9,2236.7,7.63253556]
[1750654187070,0.4190058,2236.8,2236.7,7.18230613]
[1750654187750,1.877,2236.9,2236.7,7.18230613]
[1750654187945,0.41885749,2236.8,2236.7,7.18230613]
[1750654188783,0.41884621,2236.8,2236.7,7.18230613]
[1750654189152,1.877,2236.9,2236.7,7.18230613]
[1750654189352,0.41883938,2236.8,2236.7,7.18230613]
[1750654190882,0.41883938,2236.8,2236.7,9.12120463]
[1750654191280,0.41883938,2236.8,2236.7,9.57503979]
[1750654191798,0.41890168,2236.8,2236.7,9.51543979]
[1750654192011,0.41890168,2236.8,2236.7,9.57503979]
[1750654192286,0.41890483,2236.8,2236.7,9.57503979]
[1750654194190,0.41894862,2236.8,2236.7,9.51543979]
[1750654194504,0.41894862,2236.8,2236.7,9.57503979]
[1750654194994,1.877,2237.1,2236.7,9.57503979]
[1750654195303,0.41894834,2237.0,2236.7,8.40954129]
[1750654195597,0.41894835,2236.9,2236.8,0.0596]
[1750654195808,0.41894835,2236.9,2236.8,7.18230613]
[1750654195970,0.41898279,2236.9,2236.8,7.18230613]
[1750654196783,0.41899247,2236.9,2236.8,7.12270613]
[1750654196986,0.41899247,2236.9,2236.8,8.33465815]
[1750654197301,1.877,2237.1,2236.8,8.33465815]
[1750654197510,0.41893184,2237.0,2236.8,1.15235202]
[1750654197668,1.877,2237.1,2236.9,7.12270613]
[1750654197964,0.41893213,2237.0,2236.9,7.18230613]
[1750654198166,0.41895127,2237.0,2236.9,7.12270613]
[1750654198412,0.41895127,2237.0,2236.9,7.18230613]
[1750654198614,0.41893046,2237.0,2236.9,7.18230613]
[1750654198765,1.877,2237.1,2236.8,3.17357888]
[1750654198967,1.877,2237.1,2236.8,3.11397888]
[1750654198968,0.41892749,2237.0,2236.8,3.11397888]
[1750654199281,0.0446,2237.0,2236.8,3.11397888]
[1750654199484,0.41893341,2236.9,2236.8,3.11397888]
[1750654199736,0.41893341,2236.9,2236.7,0.45383516]
[1750654199909,0.41888081,2236.8,2236.4,10.0596]
[1750654200084,0.41888081,2236.7,2236.4,10.0596]
[1750654200274,2.29588081,2236.6,2236.2,0.0596]
[1750654200598,0.41871292,2236.5,2236.3,7.18230613]
[1750654200795,0.41871292,2236.4,2236.3,7.18230613]
[1750654201216,1.877,2236.6,2236.3,8.02048081]
[1750654201401,0.41806501,2236.5,2236.3,0.79346061]
[1750654201603,1.877,2236.6,2236.5,0.0596]
[1750654201791,2.29499941,2236.6,2236.5,0.0596]
[1750654202910,2.29503902,2236.6,2236.5,0.0596]
[1750654203219,2.29505759,2236.6,2236.5,0.0596]
[1750654203417,2.29505822,2236.6,2236.5,0.51428382]
[1750654203618,2.29506024,2236.6,2236.5,0.0596]
[1750654204106,2.29505421,2236.6,2236.5,0.0596]
[1750654204416,2.29504497,2236.6,2236.5,0.0596]
[1750654204817,2.29504863,2236.6,2236.5,0.0596]
[1750654205314,1.877,2236.6,2236.5,0.0596]
[1750654205618,2.29500827,2236.6,2236.5,0.0596]
[1750654205985,2.29500827,2236.6,2236.5,0.85412061]
[1750654206220,1.877,2236.6,2236.5,0.85412061]
[1750654206422,2.29512135,2236.6,2236.5,0.85412061]
[1750654206789,2.29512135,2236.6,2236.5,1.29121642]
[1750654206992,2.29512479,2236.6,2236.5,1.29121642]
[1750654207382,1.877,2236.6,2236.5,1.29121642]
[1750654207628,2.29510043,2236.6,2236.5,1.29121642]
[1750654208932,0.41810043,2236.6,2236.5,5.1732953]
[1750654209131,0.41810043,2236.6,2236.5,12.34070617]
[1750654209298,1.876,2236.9,2236.5,12.23640143]
[1750654209500,1.876,2236.9,2236.8,7.18230613]
[1750654209829,1.876,2236.9,2236.8,7.12270613]
[1750654210130,2.29407455,2236.9,2236.8,7.18230613]
[1750654211302,2.29415728,2236.9,2236.8,7.18230613]
[1750654211522,2.29415778,2236.9,2236.8,7.18230613]
[1750654211934,2.29415814,2236.9,2236.8,7.18230613]
[1750654212135,2.2941579,2236.9,2236.8,7.18230613]
[1750654212335,2.29415807,2236.9,2236.8,7.18230613]
[1750654212633,2.29415807,2236.9,2236.8,7.12270613]
[1750654212634,2.29415551,2236.9,2236.8,7.12270613]
[1750654212809,1.876,2236.9,2236.8,7.12270613]
[1750654213136,2.29416256,2236.9,2236.8,7.12270613]
[1750654213833,2.33876256,2236.9,2236.8,7.12270613]
[1750654214035,2.33880447,2236.9,2236.8,7.12270613]
[1750654214232,2.33880455,2236.9,2236.8,7.12270613]
[1750654214413,1.9206,2236.9,2236.8,7.12270613]
[1750654214612,2.29419959,2236.9,2236.7,0.0616]
[1750654214816,1.876,2236.9,2236.8,7.18430613]
[1750654215034,2.29420847,2236.9,2236.8,7.18430613]
[1750654215539,2.29420359,2236.9,2236.8,7.18430613]
[1750654216135,2.29417921,2236.9,2236.8,7.18430613]
[1750654216331,1.876,2236.9,2236.8,7.18430613]
[1750654216632,2.29417942,2236.9,2236.8,7.18430613]
[1750654216933,2.29417942,2236.9,2236.8,7.12270613]
[1750654217326,2.29424577,2236.9,2236.8,7.12270613]
[1750654218035,2.29424504,2236.9,2236.8,7.18430613]
[1750654218332,2.29424462,2236.9,2236.8,7.18430613]
[1750654218707,2.29424097,2236.9,2236.8,7.18430613]
[1750654218910,2.29424485,2236.9,2236.8,7.18430613]
[1750654219322,0.41826826,2236.9,2236.8,8.66493674]
[1750654219532,1.876,2237.2,2236.8,8.60333674]
[1750654219754,1.876,2237.2,2237.1,7.12270613]
[1750654220043,2.29428926,2237.2,2237.1,7.18430613]
[1750654221927,1.876,2237.2,2237.1,7.18430613]
[1750654222127,2.29419078,2237.2,2237.1,7.18430613]
[1750654223535,2.29411196,2237.2,2237.1,7.18430613]
[1750654224644,2.29406536,2237.2,2237.1,7.18430613]
[1750654224944,2.29406643,2237.2,2237.1,7.18430613]
[1750654225507,2.29406882,2237.2,2237.1,7.18430613]
[1750654226145,2.29402296,2237.2,2237.1,7.18430613]
[1750654226442,0.41796092,2237.2,2237.1,11.80231562]
[1750654226641,0.41797189,2237.2,2237.1,10.29828501]
[1750654227539,0.41796749,2237.2,2237.1,10.29828501]
[1750654227913,1.876,2237.3,2237.1,10.29828501]
[1750654228245,0.41797669,2237.2,2237.1,10.29828501]
[1750654228746,0.41796772,2237.2,2237.1,10.29828501]
[1750654229245,0.41796772,2237.2,2237.1,3.11397888]
[1750654230042,0.41789493,2237.2,2237.0,3.17557888]
[1750654230344,0.41789458,2237.1,2237.0,3.17557888]
[1750654230917,0.41789137,2237.1,2237.0,3.17557888]
[1750654231456,1.876,2237.3,2237.0,3.17557888]
[1750654231660,0.41799011,2237.2,2237.0,3.17557888]
[1750654231956,0.41798825,2237.1,2237.0,3.17557888]
[1750654232457,0.41807062,2237.1,2237.0,3.17557888]
[1750654233953,0.41803752,2237.1,2237.0,3.17557888]
[1750654234520,0.41809683,2237.1,2237.0,3.17557888]
[1750654234792,0.41810029,2237.1,2237.0,3.17557888]
[1750654234933,0.41810094,2237.1,2237.0,3.17557888]
[1750654235252,1.876,2237.3,2237.0,3.17557888]
[1750654235423,0.41810059,2237.2,2237.0,3.11397888]
[1750654235625,0.41810059,2237.1,2237.0,3.17557888]
[1750654235821,0.41809679,2237.1,2237.0,3.17557888]
[1750654236022,1.876,2237.3,2237.0,0.0616]
[1750654236222,0.41807442,2237.2,2237.0,0.0616]
[1750654236463,0.41807442,2237.1,2236.9,7.12270613]
[1750654236621,1.876,2237.3,2236.9,7.12270613]
[1750654236820,1.876,2237.3,2237.0,0.0616]
[1750654237020,0.41807027,2237.2,2237.0,0.0616]
[1750654237216,1.876,2237.3,2236.9,7.12270613]
[1750654237518,0.41821172,2237.2,2236.9,7.12270613]
[1750654237736,0.41821172,2237.1,2236.9,7.12270613]
[1750654237966,0.41821237,2237.0,2236.9,7.18430613]
[1750654238265,0.4182124,2237.0,2236.9,7.18430613]
[1750654238435,0.4182124,2237.0,2236.9,8.29707463]
[1750654238631,0.4182175,2237.0,2236.9,9.07137463]
[1750654238860,1.876,2237.3,2236.9,9.00977463]
[1750654239065,1.876,2237.3,2237.2,7.18430613]
[1750654239357,2.29421491,2237.3,2237.2,7.18430613]
[1750654239859,2.2942002,2237.3,2237.2,7.18430613]
[1750654240161,2.29420601,2237.3,2237.2,7.18430613]
[1750654240659,0.41830442,2237.3,2237.2,7.94000613]
[1750654240961,0.41831001,2237.3,2237.2,8.73847648]
[1750654241170,0.41831636,2237.3,2237.2,8.67687648]
[1750654241328,0.41831636,2237.3,2237.2,8.73847648]
[1750654241728,0.41833005,2237.3,2237.2,8.73847648]
[1750654242535,1.875,2237.7,2237.2,8.73847648]
[1750654242725,1.875,2237.7,2237.5,0.0608]
[1750654243060,0.41821071,2237.6,2237.5,0.0608]
[1750654243356,1.875,2237.7,2237.5,0.0608]
[1750654243563,0.41821062,2237.6,2237.5,0.0608]
[1750654243719,0.41820917,2237.6,2237.4,7.12270613]
[1750654243920,0.41820917,2237.5,2237.4,7.18350613]
[1750654244123,9.093,2237.7,2237.4,7.18350613]
[1750654244360,0.41839423,2237.6,2237.4,7.12270613]
[1750654244559,9.093,2237.7,2237.5,0.0608]
[1750654244778,0.41840743,2237.6,2237.5,0.0608]
[1750654245462,0.41843518,2237.6,2237.5,1.9037485]
[1750654245868,0.41843492,2237.6,2237.5,1.9037485]
[1750654246279,0.41810098,2237.6,2237.5,1.9037485]
[1750654246848,0.41810098,2237.6,2237.5,1.94843711]
[1750654247048,0.41835475,2237.6,2237.5,1.94843711]
[1750654247253,0.41834456,2237.6,2237.5,1.8429485]
[1750654247552,0.41834456,2237.6,2237.5,1.9037485]
[1750654247748,0.41834456,2237.6,2237.5,5.01772738]
[1750654248791,0.41834338,2237.6,2237.4,0.0608]
[1750654249084,0.41834338,2237.5,2237.4,7.18350613]
[1750654249290,0.41833401,2237.5,2237.4,7.12270613]
[1750654249465,0.41833415,2237.5,2237.4,7.12270613]
[1750654249651,0.41833415,2237.5,2237.4,7.18350613]
[1750654250462,19.84,2237.8,2237.4,9.10366167]
[1750654250668,19.84,2237.8,2237.7,7.18350613]
[1750654250887,20.25812223,2237.8,2237.7,7.18350613]
[1750654251083,20.25812548,2237.8,2237.7,7.18350613]
[1750654251387,11.16612834,2237.8,2237.7,7.18350613]
[1750654251592,2.29312683,2237.8,2237.7,7.95960613]
[1750654251789,2.29314584,2237.8,2237.7,7.95960613]
[1750654252160,2.29315432,2237.8,2237.7,7.95960613]
[1750654252564,1.875,2237.8,2237.7,7.95960613]
[1750654252757,2.29314637,2237.8,2237.7,7.95960613]
[1750654253079,1.875,2237.8,2237.6,3.11397888]
[1750654253287,0.41811805,2237.7,2237.6,3.11397888]
[1750654253596,0.4181243,2237.7,2237.6,3.11397888]
[1750654253798,0.41812477,2237.7,2237.6,3.11397888]
[1750654254770,0.41793592,2237.7,2237.6,3.11397888]
[1750654255583,0.46253592,2237.7,2237.6,3.11397888]
[1750654256205,0.46251262,2237.7,2237.6,3.11397888]
[1750654256716,0.46265032,2237.7,2237.4,10.0608]
[1750654256894,0.41805032,2237.6,2237.4,10.0608]
[1750654257203,0.0446,2237.7,2237.4,10.0608]
[1750654257382,0.41808701,2237.6,2237.4,10.0608]
[1750654257679,0.0446,2237.7,2237.4,10.0608]
[1750654257882,0.41809176,2237.6,2237.4,10.0608]
[1750654258062,0.0446,2237.7,2237.4,10.0608]
[1750654258263,0.41809348,2237.6,2237.4,10.0608]
[1750654258484,7.216,2237.5,2237.4,10.0]
[1750654258861,7.63409264,2237.5,2237.4,10.0]
[1750654259091,7.216,2237.5,2237.4,10.0]
[1750654259278,7.63409,2237.5,2237.4,10.0]
[1750654259473,7.6340917,2237.5,2237.4,10.0]
[1750654259679,7.216,2237.5,2237.4,10.0608]
[1750654260705,1.875,2237.5,2237.4,10.8208]
[1750654261005,1.875,2237.6,2237.5,0.0608]
[1750654261194,1.875,2237.6,2237.5,7.18350613]
[1750654262609,2.29329179,2237.6,2237.5,10.29748501]
[1750654263285,1.875,2237.6,2237.5,10.29748501]
[1750654263487,2.29328963,2237.6,2237.5,10.29748501]
[1750654263809,2.29328988,2237.6,2237.5,10.29748501]
[1750654264011,2.29328988,2237.6,2237.5,12.61380836]
[1750654264215,2.2934551,2237.6,2237.5,12.61380836]
[1750654264611,2.2934551,2237.6,2237.5,3.11397888]
[1750654264777,2.2934651,2237.6,2237.5,3.11397888]
[1750654265207,2.29347845,2237.6,2237.5,3.11397888]
[1750654265511,2.29348116,2237.6,2237.5,3.11397888]
[1750654266414,1.875,2237.6,2237.5,3.11397888]
[1750654266717,2.2934755,2237.6,2237.5,3.11397888]
[1750654267279,2.29347625,2237.6,2237.5,3.11397888]
[1750654268511,2.29395929,2237.6,2237.5,3.11397888]
[1750654268719,2.29395929,2237.6,2237.4,10.0]
[1750654268895,0.41895929,2237.5,2237.4,10.0608]
[1750654269517,0.4189589,2237.5,2237.4,0.0608]
[1750654269678,0.4189589,2237.5,2237.3,7.12270613]
[1750654269884,0.41896099,2237.4,2237.3,10.0]
[1750654270984,0.41901663,2237.4,2237.3,10.0608]
[1750654271189,0.41901181,2237.4,2237.3,12.1687985]
[1750654271491,0.41899983,2237.4,2237.3,12.1687985]
[1750654271917,0.41899672,2237.4,2237.3,12.1687985]
[1750654272424,0.41925292,2237.4,2237.3,12.1687985]
[1750654272595,1.875,2237.6,2237.3,12.1079985]
[1750654272801,0.41925162,2237.5,2237.4,7.18080613]
[1750654273321,0.41925037,2237.5,2237.4,7.18080613]
[1750654273625,0.41925403,2237.5,2237.4,7.18080613]
[1750654273923,0.41927735,2237.5,2237.4,7.18080613]
[1750654274122,0.41927735,2237.5,2237.4,7.96840613]
[1750654274488,0.41926883,2237.5,2237.4,7.91030613]
[1750654274692,0.41926883,2237.5,2237.4,7.96840613]
[1750654275224,0.41926863,2237.5,2237.4,7.96840613]
[1750654275529,0.4192658,2237.5,2237.4,7.96840613]
[1750654275715,0.41926853,2237.5,2237.4,7.96840613]
[1750654276020,0.41926853,2237.5,2237.4,9.40062299]
[1750654276229,0.41924704,2237.5,2237.4,9.34252299]
[1750654276518,0.41924704,2237.5,2237.4,9.40062299]
[1750654276888,0.41925132,2237.5,2237.4,9.40062299]
[1750654277090,0.41924936,2237.5,2237.4,9.34252299]
[1750654277291,0.41925131,2237.5,2237.4,9.40062299]
[1750654277590,1.874,2237.6,2237.4,9.40062299]
[1750654277894,0.41924919,2237.5,2237.4,9.40062299]
[1750654278108,0.41926643,2237.5,2237.4,9.40062299]
[1750654278429,1.874,2237.6,2237.4,9.34252299]
[1750654278618,0.41926524,2237.5,2237.4,9.40062299]
[1750654278933,0.41926524,2237.5,2237.2,3.11397888]
[1750654278934,0.46386524,2237.5,2237.2,3.17207888]